[Event "Early-Titled-Tuesday-Blitz-June-18-2024"]
[Site "Chess.com"]
[Date "2024.06.18"]
[Round "8"]
[White "FairChess_on_YouTube"]
[Black "js20000"]
[Result "0-1"]
[WhiteElo "3091"]
[BlackElo "2811"]
[TimeControl "180+1"]
[EndTime "9:30:03 PDT"]
[Termination "js20000 won by checkmate"]

1. d4 {[%clk 0:03:00.9]} 1... d6 {[%clk 0:02:59.9]} 2. e4 {[%clk 0:03:00.1]}
2... Nf6 {[%clk 0:02:59.6]} 3. Nc3 {[%clk 0:03:00]} 3... e6 {[%clk 0:02:59.9]}
4. f4 {[%clk 0:02:54.7]} 4... Nc6 {[%clk 0:02:59.7]} 5. Nf3 {[%clk 0:02:54.3]}
5... d5 {[%clk 0:02:59.9]} 6. e5 {[%clk 0:02:53.6]} 6... Ne4 {[%clk 0:03:00.1]}
7. Bd3 {[%clk 0:02:42.2]} 7... Bb4 {[%clk 0:03:00.1]} 8. Bd2 {[%clk 0:02:42]}
8... Bxc3 {[%clk 0:02:59.8]} 9. Bxc3 {[%clk 0:02:40]} 9... Ne7 {[%clk
0:02:59.7]} 10. Bb4 {[%clk 0:02:28.7]} 10... b6 {[%clk 0:02:50]} 11. Qe2 {[%clk
0:02:23.4]} 11... Bb7 {[%clk 0:02:49.6]} 12. O-O {[%clk 0:02:21.1]} 12... c5
{[%clk 0:02:45.5]} 13. Ba3 {[%clk 0:02:20.1]} 13... Nf5 {[%clk 0:02:29.8]} 14.
Rad1 {[%clk 0:02:15.5]} 14... c4 {[%clk 0:02:21.8]} 15. Bxe4 {[%clk 0:02:06.8]}
15... dxe4 {[%clk 0:02:22.7]} 16. Nd2 {[%clk 0:01:39.9]} 16... Qxd4+ {[%clk
0:02:20.5]} 17. Kh1 {[%clk 0:01:39.9]} 17... b5 {[%clk 0:01:47.7]} 18. Nb1
{[%clk 0:01:22]} 18... Qe3 {[%clk 0:01:45.3]} 19. Qg4 {[%clk 0:01:21.6]} 19...
h5 {[%clk 0:01:42.9]} 20. Qg5 {[%clk 0:01:17.2]} 20... h4 {[%clk 0:01:42.4]} 21.
Nc3 {[%clk 0:01:11.7]} 21... Ng3+ {[%clk 0:01:38.3]} 22. Qxg3 {[%clk 0:00:59]}
22... hxg3 {[%clk 0:01:39.2]} 23. h3 {[%clk 0:00:59.5]} 23... Qb6 {[%clk
0:01:16]} 24. Rd6 {[%clk 0:00:52.5]} 24... Qa5 {[%clk 0:01:15.7]} 25. f5 {[%clk
0:00:43.1]} 25... b4 {[%clk 0:01:12.6]} 26. fxe6 {[%clk 0:00:43.6]} 26... bxa3
{[%clk 0:01:07.1]} 27. exf7+ {[%clk 0:00:42.9]} 27... Kf8 {[%clk 0:01:07.3]} 28.
e6 {[%clk 0:00:40.2]} 28... Qe5 {[%clk 0:00:53.6]} 29. Rfd1 {[%clk 0:00:36.3]}
29... Ke7 {[%clk 0:00:29.9]} 30. Rd7+ {[%clk 0:00:31.8]} 30... Kxe6 {[%clk
0:00:29]} 31. Rxb7 {[%clk 0:00:32.4]} 31... Rhd8 {[%clk 0:00:28.8]} 32. Rf1
{[%clk 0:00:29.8]} 32... axb2 {[%clk 0:00:27.8]} 33. Ne2 {[%clk 0:00:30.1]}
33... Rab8 {[%clk 0:00:22.9]} 34. Rxb8 {[%clk 0:00:17.5]} 34... Rxb8 {[%clk
0:00:23.8]} 35. Nf4+ {[%clk 0:00:14.1]} 35... Qxf4 {[%clk 0:00:23.3]} 36. Rxf4
{[%clk 0:00:13.8]} 36... b1=R+ {[%clk 0:00:22.1]} 37. Rf1 {[%clk 0:00:14.7]}
37... Rxf1# {[%clk 0:00:22]} 0-1

[Event "Early-Titled-Tuesday-Blitz-June-18-2024"]
[Site "Chess.com"]
[Date "2024.06.18"]
[Round "8"]
[White "Zavgorodniy_Sergiy"]
[Black "Niteshch"]
[Result "1-0"]
[WhiteElo "2608"]
[BlackElo "2366"]
[TimeControl "180+1"]
[EndTime "9:30:05 PDT"]
[Termination "Zavgorodniy_Sergiy won by resignation"]

1. d4 {[%clk 0:03:00.9]} 1... Nf6 {[%clk 0:02:59.6]} 2. Nc3 {[%clk 0:02:59.1]}
2... d5 {[%clk 0:02:58]} 3. Bf4 {[%clk 0:02:59]} 3... g6 {[%clk 0:02:56.4]} 4.
Nf3 {[%clk 0:02:56.5]} 4... Bg7 {[%clk 0:02:44.6]} 5. h3 {[%clk 0:02:54.3]} 5...
O-O {[%clk 0:02:37.2]} 6. e3 {[%clk 0:02:54.1]} 6... c5 {[%clk 0:02:29.4]} 7.
Nb5 {[%clk 0:02:50.3]} 7... Na6 {[%clk 0:02:19.9]} 8. c3 {[%clk 0:02:48.7]} 8...
Bd7 {[%clk 0:02:12.6]} 9. Be2 {[%clk 0:02:46.8]} 9... c4 {[%clk 0:02:04.5]} 10.
a4 {[%clk 0:02:43.8]} 10... Ne4 {[%clk 0:01:53.2]} 11. O-O {[%clk 0:02:41.3]}
11... Bxb5 {[%clk 0:01:28.5]} 12. axb5 {[%clk 0:02:40]} 12... Nc7 {[%clk
0:01:28.4]} 13. Nd2 {[%clk 0:02:13.8]} 13... Nxd2 {[%clk 0:01:20.8]} 14. Qxd2
{[%clk 0:02:14.7]} 14... Nxb5 {[%clk 0:01:19]} 15. e4 {[%clk 0:02:13.9]} 15...
dxe4 {[%clk 0:01:12.1]} 16. Bxc4 {[%clk 0:02:13.1]} 16... Nd6 {[%clk 0:01:12.2]}
17. Be2 {[%clk 0:02:13.7]} 17... Nf5 {[%clk 0:01:03.2]} 18. Qc2 {[%clk
0:02:04.5]} 18... Qd5 {[%clk 0:00:59.5]} 19. Ra4 {[%clk 0:01:56.2]} 19... Rfd8
{[%clk 0:00:51.4]} 20. Rfa1 {[%clk 0:01:47.7]} 20... Rac8 {[%clk 0:00:47.7]} 21.
Qb1 {[%clk 0:01:13]} 21... e5 {[%clk 0:00:41.7]} 22. Ra5 {[%clk 0:01:11.3]}
22... Qc6 {[%clk 0:00:36.9]} 23. Bxe5 {[%clk 0:01:11.8]} 23... e3 {[%clk
0:00:33.6]} 24. Bxg7 {[%clk 0:01:06.6]} 24... exf2+ {[%clk 0:00:31.8]} 25. Kxf2
{[%clk 0:01:07.5]} 25... Kxg7 {[%clk 0:00:29.8]} 26. Bg4 {[%clk 0:01:03.6]}
26... Rd5 {[%clk 0:00:21.9]} 27. Bxf5 {[%clk 0:01:01.6]} 27... gxf5 {[%clk
0:00:20.9]} 28. Qc1 {[%clk 0:00:46.9]} 28... h6 {[%clk 0:00:17.9]} 29. Rxd5
{[%clk 0:00:37.1]} 29... Qxd5 {[%clk 0:00:18]} 30. Qe3 {[%clk 0:00:37.5]} 30...
a5 {[%clk 0:00:14.5]} 31. Kg1 {[%clk 0:00:34.9]} 31... Ra8 {[%clk 0:00:11.1]}
32. Rf1 {[%clk 0:00:34.5]} 32... a4 {[%clk 0:00:09.5]} 33. Qg3+ {[%clk
0:00:31.9]} 33... Kf6 {[%clk 0:00:09.3]} 34. Re1 {[%clk 0:00:32.3]} 34... a3
{[%clk 0:00:07.9]} 35. bxa3 {[%clk 0:00:32.9]} 35... Rxa3 {[%clk 0:00:07.5]} 36.
Re5 {[%clk 0:00:33.5]} 36... Ra1+ {[%clk 0:00:03.7]} 37. Kh2 {[%clk 0:00:33.5]}
37... Qc4 {[%clk 0:00:04.1]} 38. Qf4 {[%clk 0:00:33]} 38... Qf1 {[%clk
0:00:03.3]} 39. Rxf5+ {[%clk 0:00:32.7]} 1-0

[Event "Early-Titled-Tuesday-Blitz-June-18-2024"]
[Site "Chess.com"]
[Date "2024.06.18"]
[Round "8"]
[White "KarlEmilElmer"]
[Black "Resourchess"]
[Result "0-1"]
[WhiteElo "2186"]
[BlackElo "2374"]
[TimeControl "180+1"]
[EndTime "9:30:06 PDT"]
[Termination "Resourchess won on time"]

1. d4 {[%clk 0:03:00.9]} 1... d6 {[%clk 0:02:59.1]} 2. Nf3 {[%clk 0:02:59.4]}
2... g6 {[%clk 0:02:59.2]} 3. e4 {[%clk 0:02:58.7]} 3... Bg7 {[%clk 0:02:59.1]}
4. Bd3 {[%clk 0:02:57.9]} 4... Nf6 {[%clk 0:02:57.9]} 5. c3 {[%clk 0:02:55.8]}
5... O-O {[%clk 0:02:57.4]} 6. Be3 {[%clk 0:02:56.2]} 6... Bg4 {[%clk 0:02:50]}
7. Nbd2 {[%clk 0:02:55.4]} 7... Nbd7 {[%clk 0:02:47.3]} 8. h3 {[%clk 0:02:53.8]}
8... Bxf3 {[%clk 0:02:47.3]} 9. Nxf3 {[%clk 0:02:54]} 9... c5 {[%clk 0:02:47.3]}
10. O-O {[%clk 0:02:50.4]} 10... a6 {[%clk 0:02:46.1]} 11. a4 {[%clk 0:02:50.3]}
11... Rc8 {[%clk 0:02:44.8]} 12. Qb3 {[%clk 0:02:45.7]} 12... Qc7 {[%clk
0:02:40.1]} 13. dxc5 {[%clk 0:01:35.4]} 13... Nxc5 {[%clk 0:02:27.2]} 14. Bxc5
{[%clk 0:01:35.3]} 14... dxc5 {[%clk 0:02:27.5]} 15. e5 {[%clk 0:01:35.5]} 15...
Nh5 {[%clk 0:02:21]} 16. Be4 {[%clk 0:01:25]} 16... b6 {[%clk 0:02:14.3]} 17. a5
{[%clk 0:00:58.1]} 17... b5 {[%clk 0:02:09.9]} 18. Qd5 {[%clk 0:00:47.2]} 18...
Nf4 {[%clk 0:02:04.4]} 19. Qb7 {[%clk 0:00:45.9]} 19... Bxe5 {[%clk 0:01:42.3]}
20. Qxa6 {[%clk 0:00:40.9]} 20... b4 {[%clk 0:01:33.8]} 21. Qb7 {[%clk
0:00:27.5]} 21... bxc3 {[%clk 0:01:27.7]} 22. bxc3 {[%clk 0:00:26.5]} 22... Ne2+
{[%clk 0:01:20.5]} 23. Kh1 {[%clk 0:00:24.7]} 23... Nxc3 {[%clk 0:01:20.8]} 24.
Qxc7 {[%clk 0:00:17.9]} 24... Rxc7 {[%clk 0:01:20.6]} 25. Nxe5 {[%clk
0:00:17.3]} 25... Nxe4 {[%clk 0:01:20.4]} 26. a6 {[%clk 0:00:16.5]} 26... Ra7
{[%clk 0:01:18.8]} 27. Nc6 {[%clk 0:00:16.3]} 27... Rc7 {[%clk 0:01:13.9]} 28.
a7 {[%clk 0:00:16]} 28... Ra8 {[%clk 0:01:13]} 29. Rfb1 {[%clk 0:00:12.3]} 29...
Rxc6 {[%clk 0:01:08.1]} 30. Rb8+ {[%clk 0:00:11.8]} 30... Rc8 {[%clk 0:01:08.2]}
31. Rxc8+ {[%clk 0:00:09.8]} 31... Rxc8 {[%clk 0:01:09.1]} 32. a8=Q {[%clk
0:00:10.6]} 32... Rxa8 {[%clk 0:01:09.3]} 33. Rxa8+ {[%clk 0:00:11.2]} 33... Kg7
{[%clk 0:01:09.9]} 34. Rc8 {[%clk 0:00:10.1]} 34... Nxf2+ {[%clk 0:01:05.5]} 35.
Kg1 {[%clk 0:00:08.4]} 35... Ne4 {[%clk 0:01:05.3]} 36. Kf1 {[%clk 0:00:07.5]}
36... f5 {[%clk 0:01:05]} 37. Ke2 {[%clk 0:00:06.8]} 37... h5 {[%clk 0:01:03.8]}
38. Kf3 {[%clk 0:00:05.9]} 38... Kf6 {[%clk 0:01:03.9]} 39. g4 {[%clk
0:00:05.1]} 39... hxg4+ {[%clk 0:01:02.7]} 40. hxg4 {[%clk 0:00:06]} 40... Ng5+
{[%clk 0:01:01.1]} 41. Kf4 {[%clk 0:00:05.7]} 41... e5+ {[%clk 0:00:57.2]} 42.
Ke3 {[%clk 0:00:02.8]} 42... f4+ {[%clk 0:00:55.9]} 43. Kf2 {[%clk 0:00:03.2]}
43... Ke6 {[%clk 0:00:54.1]} 44. Ke2 {[%clk 0:00:02]} 44... Ne4 {[%clk
0:00:45.1]} 0-1

[Event "Early-Titled-Tuesday-Blitz-June-18-2024"]
[Site "Chess.com"]
[Date "2024.06.18"]
[Round "8"]
[White "Shield12"]
[Black "SirStrateg"]
[Result "1-0"]
[WhiteElo "2894"]
[BlackElo "2704"]
[TimeControl "180+1"]
[EndTime "9:30:07 PDT"]
[Termination "Shield12 won on time"]

1. d4 {[%clk 0:03:00.9]} 1... d6 {[%clk 0:03:00.2]} 2. c4 {[%clk 0:03:00.5]}
2... e5 {[%clk 0:02:59.5]} 3. Nc3 {[%clk 0:03:00.8]} 3... Nf6 {[%clk 0:02:57.9]}
4. Nf3 {[%clk 0:02:59.6]} 4... Nbd7 {[%clk 0:02:58.2]} 5. Bg5 {[%clk 0:02:57.7]}
5... Be7 {[%clk 0:02:58.3]} 6. e3 {[%clk 0:02:57.4]} 6... h6 {[%clk 0:02:58.3]}
7. Bh4 {[%clk 0:02:56.7]} 7... Nh7 {[%clk 0:02:58.7]} 8. Bg3 {[%clk 0:02:56]}
8... Ng5 {[%clk 0:02:57.8]} 9. Nd2 {[%clk 0:02:46]} 9... c6 {[%clk 0:02:52.8]}
10. Bd3 {[%clk 0:02:38.1]} 10... Ne6 {[%clk 0:02:43.9]} 11. Nf3 {[%clk
0:02:36.7]} 11... Qa5 {[%clk 0:02:31.1]} 12. a3 {[%clk 0:02:33.7]} 12... Ng5
{[%clk 0:02:25.5]} 13. Nd2 {[%clk 0:02:30.5]} 13... O-O {[%clk 0:02:07.2]} 14.
b4 {[%clk 0:02:24.4]} 14... Qd8 {[%clk 0:02:07.3]} 15. h4 {[%clk 0:02:21.8]}
15... exd4 {[%clk 0:02:05.5]} 16. hxg5 {[%clk 0:02:20.8]} 16... dxc3 {[%clk
0:02:05.7]} 17. Ne4 {[%clk 0:02:13.2]} 17... Bxg5 {[%clk 0:01:59.1]} 18. Nxd6
{[%clk 0:02:11.6]} 18... Bf6 {[%clk 0:01:25.7]} 19. Qc2 {[%clk 0:02:09.3]} 19...
Ne5 {[%clk 0:01:22.9]} 20. c5 {[%clk 0:02:01.4]} 20... Nxd3+ {[%clk 0:00:59.3]}
21. Qxd3 {[%clk 0:02:02.3]} 21... b6 {[%clk 0:00:59.9]} 22. O-O {[%clk 0:01:55]}
22... a5 {[%clk 0:00:59.5]} 23. Rfd1 {[%clk 0:01:39.3]} 23... axb4 {[%clk
0:00:52.2]} 24. axb4 {[%clk 0:01:39.1]} 24... Rxa1 {[%clk 0:00:47.2]} 25. Rxa1
{[%clk 0:01:40]} 25... bxc5 {[%clk 0:00:42.8]} 26. bxc5 {[%clk 0:01:40.9]} 26...
Be6 {[%clk 0:00:34.4]} 27. e4 {[%clk 0:01:40.3]} 27... c2 {[%clk 0:00:12.2]} 28.
e5 {[%clk 0:01:37.4]} 28... Be7 {[%clk 0:00:10.8]} 29. Qxc2 {[%clk 0:01:36.9]}
29... Bd5 {[%clk 0:00:11]} 30. Ra7 {[%clk 0:01:34.1]} 30... Bg5 {[%clk
0:00:09.5]} 31. Qf5 {[%clk 0:01:30.8]} 31... Qb8 {[%clk 0:00:08.6]} 32. Rb7
{[%clk 0:01:29.3]} 32... Qa8 {[%clk 0:00:08.5]} 33. Kh2 {[%clk 0:01:23.3]} 33...
Qa3 {[%clk 0:00:05.6]} 34. Bf4 {[%clk 0:01:17]} 34... Bxf4+ {[%clk 0:00:05.4]}
35. Qxf4 {[%clk 0:01:17.9]} 35... Qxc5 {[%clk 0:00:05.5]} 36. Nf5 {[%clk
0:01:18.1]} 36... Qc2 {[%clk 0:00:02.6]} 37. Qg4 {[%clk 0:01:06.4]} 37... g6
{[%clk 0:00:03.2]} 38. Ne7+ {[%clk 0:01:05.4]} 38... Kg7 {[%clk 0:00:03.1]} 39.
Qf4 {[%clk 0:01:01.9]} 39... Qe4 {[%clk 0:00:03.1]} 40. Qf6+ {[%clk 0:00:59]}
40... Kh7 {[%clk 0:00:03.4]} 41. f3 {[%clk 0:00:58.4]} 41... Qe2 {[%clk
0:00:02.8]} 42. Nxd5 {[%clk 0:00:51.3]} 42... cxd5 {[%clk 0:00:03.1]} 43. e6
{[%clk 0:00:51.9]} 43... Kg8 {[%clk 0:00:01.6]} 44. Rxf7 {[%clk 0:00:49.4]} 1-0

[Event "Early-Titled-Tuesday-Blitz-June-18-2024"]
[Site "Chess.com"]
[Date "2024.06.18"]
[Round "8"]
[White "DanyKopy"]
[Black "LoonsDeKoeben"]
[Result "1/2-1/2"]
[WhiteElo "2564"]
[BlackElo "2400"]
[TimeControl "180+1"]
[EndTime "9:30:09 PDT"]
[Termination "Game drawn by repetition"]

1. Nf3 {[%clk 0:03:00.9]} 1... Nf6 {[%clk 0:03:00.2]} 2. c4 {[%clk 0:02:59.9]}
2... b6 {[%clk 0:03:00.5]} 3. g3 {[%clk 0:02:56.1]} 3... Bb7 {[%clk 0:03:00.6]}
4. Bg2 {[%clk 0:02:56.5]} 4... e6 {[%clk 0:03:01.5]} 5. O-O {[%clk 0:02:55.6]}
5... Be7 {[%clk 0:03:02]} 6. Nc3 {[%clk 0:02:55.1]} 6... O-O {[%clk 0:03:02.3]}
7. b3 {[%clk 0:02:51.9]} 7... Ne4 {[%clk 0:02:55.1]} 8. Bb2 {[%clk 0:02:45.1]}
8... Nxc3 {[%clk 0:02:54.8]} 9. Bxc3 {[%clk 0:02:44.7]} 9... Bf6 {[%clk
0:02:55]} 10. Qc2 {[%clk 0:02:39.5]} 10... Bxc3 {[%clk 0:02:52.5]} 11. Qxc3
{[%clk 0:02:38.4]} 11... d6 {[%clk 0:02:49.6]} 12. Qc2 {[%clk 0:02:30.3]} 12...
Nc6 {[%clk 0:02:28.5]} 13. d4 {[%clk 0:02:21.9]} 13... Qf6 {[%clk 0:02:16.9]}
14. Rad1 {[%clk 0:02:13]} 14... Nb4 {[%clk 0:01:50.2]} 15. Qb1 {[%clk
0:02:08.3]} 15... Qg6 {[%clk 0:01:43.8]} 16. a3 {[%clk 0:02:02.6]} 16... Qxb1
{[%clk 0:01:37.9]} 17. Rxb1 {[%clk 0:02:03.5]} 17... Na6 {[%clk 0:01:17.1]} 18.
b4 {[%clk 0:02:00.4]} 18... Be4 {[%clk 0:01:09]} 19. Rbc1 {[%clk 0:01:57.7]}
19... Rac8 {[%clk 0:00:58.5]} 20. c5 {[%clk 0:01:38.7]} 20... dxc5 {[%clk
0:00:16.4]} 21. dxc5 {[%clk 0:01:38.2]} 21... bxc5 {[%clk 0:00:16.6]} 22. bxc5
{[%clk 0:01:37.8]} 22... c6 {[%clk 0:00:13.8]} 23. Rfd1 {[%clk 0:01:25.9]} 23...
Rfd8 {[%clk 0:00:13.7]} 24. Rd6 {[%clk 0:01:04.1]} 24... Kf8 {[%clk 0:00:06.8]}
25. Ne5 {[%clk 0:00:54.9]} 25... Bxg2 {[%clk 0:00:05.2]} 26. Kxg2 {[%clk
0:00:55.8]} 26... Rxd6 {[%clk 0:00:05.3]} 27. cxd6 {[%clk 0:00:54.7]} 27... c5
{[%clk 0:00:01.5]} 28. Rd1 {[%clk 0:00:37.1]} 28... Rd8 {[%clk 0:00:02.1]} 29.
d7 {[%clk 0:00:27.2]} 29... Nb8 {[%clk 0:00:01.3]} 30. Rb1 {[%clk 0:00:27.3]}
30... Ke7 {[%clk 0:00:01.9]} 31. Rxb8 {[%clk 0:00:26.8]} 31... Rxb8 {[%clk
0:00:02.8]} 32. Nc6+ {[%clk 0:00:27]} 32... Kxd7 {[%clk 0:00:03.7]} 33. Nxb8+
{[%clk 0:00:27.3]} 33... Kc7 {[%clk 0:00:04.1]} 34. Na6+ {[%clk 0:00:24]} 34...
Kb6 {[%clk 0:00:04.7]} 35. Nb8 {[%clk 0:00:23.9]} 35... Kc7 {[%clk 0:00:05.2]}
36. Na6+ {[%clk 0:00:22.4]} 36... Kb6 {[%clk 0:00:05.4]} 37. Nb8 {[%clk
0:00:22.6]} 37... Kc7 {[%clk 0:00:05.8]} 1/2-1/2

[Event "Early-Titled-Tuesday-Blitz-June-18-2024"]
[Site "Chess.com"]
[Date "2024.06.18"]
[Round "8"]
[White "JAN2404"]
[Black "unkiyto"]
[Result "0-1"]
[WhiteElo "2060"]
[BlackElo "2675"]
[TimeControl "180+1"]
[EndTime "9:30:12 PDT"]
[Termination "unkiyto won by checkmate"]

1. e4 {[%clk 0:03:00.9]} 1... c5 {[%clk 0:02:59.4]} 2. d4 {[%clk 0:03:00.3]}
2... cxd4 {[%clk 0:02:59.1]} 3. c3 {[%clk 0:03:00.3]} 3... dxc3 {[%clk
0:02:58.5]} 4. Nxc3 {[%clk 0:03:00.8]} 4... Nc6 {[%clk 0:02:58]} 5. Nf3 {[%clk
0:03:00]} 5... a6 {[%clk 0:02:57.7]} 6. Bc4 {[%clk 0:02:59.6]} 6... d6 {[%clk
0:02:52.9]} 7. O-O {[%clk 0:02:57.1]} 7... Nf6 {[%clk 0:02:52.7]} 8. e5 {[%clk
0:02:50.2]} 8... dxe5 {[%clk 0:02:46.2]} 9. Nxe5 {[%clk 0:02:44.2]} 9... Nxe5
{[%clk 0:02:35.8]} 10. Qa4+ {[%clk 0:02:12.9]} 10... Bd7 {[%clk 0:02:30.5]} 11.
Qb3 {[%clk 0:02:12.3]} 11... Nxc4 {[%clk 0:02:28.2]} 12. Qxc4 {[%clk 0:02:11.7]}
12... e6 {[%clk 0:02:25.3]} 13. Rd1 {[%clk 0:02:11.1]} 13... Be7 {[%clk
0:02:24.1]} 14. Bf4 {[%clk 0:02:09.5]} 14... O-O {[%clk 0:02:19.4]} 15. Bc7
{[%clk 0:02:09.2]} 15... Qc8 {[%clk 0:02:18.9]} 16. Qf4 {[%clk 0:01:54.2]} 16...
Bc6 {[%clk 0:01:59]} 17. Rac1 {[%clk 0:01:36.7]} 17... b5 {[%clk 0:01:51.1]} 18.
Ne2 {[%clk 0:01:29.8]} 18... Qb7 {[%clk 0:01:49.4]} 19. Nd4 {[%clk 0:01:22.7]}
19... Bxg2 {[%clk 0:01:28]} 20. Rd3 {[%clk 0:01:22]} 20... Nd5 {[%clk
0:01:18.6]} 21. Qg3 {[%clk 0:01:15.8]} 21... Be4 {[%clk 0:01:14.1]} 22. Be5
{[%clk 0:01:05.7]} 22... Bg6 {[%clk 0:01:09.7]} 23. Rf3 {[%clk 0:00:45.7]} 23...
Rac8 {[%clk 0:01:06.7]} 24. Re1 {[%clk 0:00:42.5]} 24... Nb4 {[%clk 0:00:54.9]}
25. h4 {[%clk 0:00:36.7]} 25... h5 {[%clk 0:00:46.4]} 26. Nxe6 {[%clk
0:00:34.1]} 26... fxe6 {[%clk 0:00:19.6]} 27. Qxg6 {[%clk 0:00:33.4]} 27... Bxh4
{[%clk 0:00:18]} 28. Ree3 {[%clk 0:00:17.9]} 28... Bxf2+ {[%clk 0:00:06.2]} 29.
Rxf2 {[%clk 0:00:15.8]} 29... Rc1+ {[%clk 0:00:06]} 30. Kh2 {[%clk 0:00:09.6]}
30... Rxf2+ {[%clk 0:00:05.9]} 31. Kh3 {[%clk 0:00:09.4]} 31... Rh1+ {[%clk
0:00:04.6]} 32. Kg3 {[%clk 0:00:08.7]} 32... Qg2# {[%clk 0:00:03.8]} 0-1

[Event "Early-Titled-Tuesday-Blitz-June-18-2024"]
[Site "Chess.com"]
[Date "2024.06.18"]
[Round "8"]
[White "VerdeNotte"]
[Black "HamedWafa4"]
[Result "1-0"]
[WhiteElo "2860"]
[BlackElo "2690"]
[TimeControl "180+1"]
[EndTime "9:30:13 PDT"]
[Termination "VerdeNotte won by resignation"]

1. Nf3 {[%clk 0:02:51.6]} 1... Nf6 {[%clk 0:02:59.3]} 2. g3 {[%clk 0:02:51.7]}
2... g6 {[%clk 0:02:59.4]} 3. Bg2 {[%clk 0:02:52.1]} 3... Bg7 {[%clk 0:03:00]}
4. b3 {[%clk 0:02:52.8]} 4... O-O {[%clk 0:03:00.7]} 5. Bb2 {[%clk 0:02:53]}
5... d6 {[%clk 0:02:59.8]} 6. d4 {[%clk 0:02:52]} 6... Nc6 {[%clk 0:02:57.4]} 7.
O-O {[%clk 0:02:51.4]} 7... e5 {[%clk 0:02:57]} 8. dxe5 {[%clk 0:02:51.3]} 8...
Ng4 {[%clk 0:02:57.1]} 9. Qd2 {[%clk 0:02:49]} 9... Ngxe5 {[%clk 0:02:56.3]} 10.
c4 {[%clk 0:02:42.9]} 10... Nxf3+ {[%clk 0:02:44.3]} 11. Bxf3 {[%clk 0:02:42.7]}
11... Bh3 {[%clk 0:02:44.5]} 12. Rd1 {[%clk 0:02:38]} 12... Re8 {[%clk
0:02:41.6]} 13. Bxg7 {[%clk 0:02:34.3]} 13... Kxg7 {[%clk 0:02:41.7]} 14. Nc3
{[%clk 0:02:34.2]} 14... Ne5 {[%clk 0:02:40.1]} 15. Bxb7 {[%clk 0:02:31.8]}
15... Rb8 {[%clk 0:02:39.6]} 16. Bh1 {[%clk 0:02:27]} 16... h5 {[%clk
0:02:36.5]} 17. Qd4 {[%clk 0:02:20.4]} 17... Kg8 {[%clk 0:02:35.7]} 18. Qxa7
{[%clk 0:02:16.2]} 18... h4 {[%clk 0:02:34.7]} 19. Qd4 {[%clk 0:02:14.5]} 19...
hxg3 {[%clk 0:02:34.8]} 20. hxg3 {[%clk 0:02:14.8]} 20... Bf5 {[%clk 0:02:07.7]}
21. Nd5 {[%clk 0:02:09.5]} 21... Ng4 {[%clk 0:01:31.7]} 22. Bf3 {[%clk 0:02:00]}
22... Ne5 {[%clk 0:01:26.3]} 23. Bg2 {[%clk 0:01:54.6]} 23... Ng4 {[%clk
0:01:25.5]} 24. Rd2 {[%clk 0:01:41.9]} 24... c5 {[%clk 0:01:08.2]} 25. Qf4
{[%clk 0:01:36.9]} 25... Re5 {[%clk 0:01:04.6]} 26. Rad1 {[%clk 0:01:31.7]}
26... Qe8 {[%clk 0:00:50.6]} 27. Bf3 {[%clk 0:01:23.2]} 27... Kg7 {[%clk
0:00:43.1]} 28. Bxg4 {[%clk 0:01:05.2]} 28... Re4 {[%clk 0:00:42.3]} 29. Qf3
{[%clk 0:01:04.3]} 29... Rxg4 {[%clk 0:00:36.7]} 30. Qc3+ {[%clk 0:00:53]} 30...
Qe5 {[%clk 0:00:29.1]} 31. Qxe5+ {[%clk 0:00:52.2]} 31... dxe5 {[%clk 0:00:30]}
32. Ne3 {[%clk 0:00:52.4]} 32... Rg5 {[%clk 0:00:28.9]} 33. Nxf5+ {[%clk
0:00:49]} 33... gxf5 {[%clk 0:00:28.8]} 34. Rd5 {[%clk 0:00:48.2]} 34... e4
{[%clk 0:00:29]} 35. Rxc5 {[%clk 0:00:47.8]} 35... Rh8 {[%clk 0:00:28.9]} 36. e3
{[%clk 0:00:43]} 36... Kg6 {[%clk 0:00:18.9]} 37. Rd6+ {[%clk 0:00:42.4]} 37...
Kh5 {[%clk 0:00:18.8]} 38. Kf1 {[%clk 0:00:35]} 38... Kg4 {[%clk 0:00:18.9]} 39.
Ke2 {[%clk 0:00:35]} 39... Kh3 {[%clk 0:00:19.4]} 40. Rf6 {[%clk 0:00:33.2]}
40... Rhh5 {[%clk 0:00:19.7]} 41. a4 {[%clk 0:00:29.2]} 41... Kg2 {[%clk
0:00:20]} 42. Rd5 {[%clk 0:00:25.9]} 42... Kg1 {[%clk 0:00:16.4]} 43. a5 {[%clk
0:00:22.8]} 1-0

[Event "Early-Titled-Tuesday-Blitz-June-18-2024"]
[Site "Chess.com"]
[Date "2024.06.18"]
[Round "8"]
[White "Prizant_academy"]
[Black "Mikasinski"]
[Result "1-0"]
[WhiteElo "2967"]
[BlackElo "2714"]
[TimeControl "180+1"]
[EndTime "9:30:15 PDT"]
[Termination "Prizant_academy won on time"]

1. d4 {[%clk 0:03:00.9]} 1... Nf6 {[%clk 0:02:58.9]} 2. c4 {[%clk 0:03:00.6]}
2... e6 {[%clk 0:02:59.5]} 3. Bf4 {[%clk 0:03:00.5]} 3... d5 {[%clk 0:02:59.8]}
4. cxd5 {[%clk 0:03:00]} 4... Nxd5 {[%clk 0:02:59.7]} 5. Bg3 {[%clk 0:02:59.9]}
5... c5 {[%clk 0:02:59.6]} 6. e4 {[%clk 0:03:00]} 6... Qa5+ {[%clk 0:02:58.6]}
7. Nd2 {[%clk 0:02:55.7]} 7... Nf6 {[%clk 0:02:58.2]} 8. Bd3 {[%clk 0:02:41.1]}
8... Nc6 {[%clk 0:02:53.3]} 9. Nf3 {[%clk 0:02:40.6]} 9... c4 {[%clk 0:02:38.3]}
10. Bc2 {[%clk 0:02:33.7]} 10... c3 {[%clk 0:02:33.9]} 11. Nb3 {[%clk
0:02:09.1]} 11... Qb4 {[%clk 0:02:26.9]} 12. a3 {[%clk 0:02:07.8]} 12... Qc4
{[%clk 0:02:27.2]} 13. Bd3 {[%clk 0:02:05.1]} 13... Qa4 {[%clk 0:02:27.3]} 14.
bxc3 {[%clk 0:02:03.2]} 14... Be7 {[%clk 0:02:20.4]} 15. O-O {[%clk 0:02:02.8]}
15... O-O {[%clk 0:02:20]} 16. c4 {[%clk 0:01:41.3]} 16... Rd8 {[%clk
0:02:08.9]} 17. d5 {[%clk 0:01:40.7]} 17... exd5 {[%clk 0:02:06.5]} 18. cxd5
{[%clk 0:01:37.7]} 18... Nb8 {[%clk 0:01:20.8]} 19. d6 {[%clk 0:01:18.9]} 19...
Bf8 {[%clk 0:01:01.3]} 20. e5 {[%clk 0:01:19]} 20... Nh5 {[%clk 0:00:58.2]} 21.
Ng5 {[%clk 0:01:03.4]} 21... g6 {[%clk 0:00:51.2]} 22. Rc1 {[%clk 0:00:59.6]}
22... Bg4 {[%clk 0:00:45.5]} 23. Qc2 {[%clk 0:00:40.3]} 23... Bh6 {[%clk
0:00:30.8]} 24. Qc4 {[%clk 0:00:25.5]} 24... Qxc4 {[%clk 0:00:22.6]} 25. Rxc4
{[%clk 0:00:26.4]} 25... Bd7 {[%clk 0:00:19.6]} 26. Ne4 {[%clk 0:00:23.4]} 26...
Be6 {[%clk 0:00:18.1]} 27. Rc3 {[%clk 0:00:17.7]} 27... b6 {[%clk 0:00:18.3]}
28. Nd4 {[%clk 0:00:16.5]} 28... Bd5 {[%clk 0:00:13.1]} 29. f4 {[%clk
0:00:15.6]} 29... Nd7 {[%clk 0:00:11.5]} 30. Nc6 {[%clk 0:00:15.4]} 30... Bxc6
{[%clk 0:00:06.9]} 31. Rxc6 {[%clk 0:00:16.3]} 31... Kh8 {[%clk 0:00:01.2]} 32.
Rc7 {[%clk 0:00:15.7]} 32... Bg7 {[%clk 0:00:01.1]} 33. Bb5 {[%clk 0:00:15]} 1-0